[Event "Titled Tuesday Blitz January 10 Early 2023"]
[White "Samunenkov, Ihor"]
[Black "Nathan, Nitish"]
[WhiteFideId "14187086"]
[BlackFideId "30927870"]
[WhiteElo "2501"]
[BlackElo "2071"]
[Result "1-0"]
[Round "01"]
[TimeControl "180+2"]
[Date "2023.01.10"]
[WhiteClock "0:00:49"]
[BlackClock "0:00:08"]

1. e4 {[%clk 0:03:00]}  c5 {[%clk 0:02:59]} 2. Nf3 {[%clk 0:02:59]}  Nc6 {[%clk 0:02:57]} 3. Bb5 {[%clk 0:02:59]}  e6 {[%clk 0:02:53]} 4. O-O {[%clk 0:02:59]}  Nge7 {[%clk 0:02:53]} 5. Re1 {[%clk 0:02:59]}  b6 {[%clk 0:02:52]} 6. c3 {[%clk 0:02:43]}  a6 {[%clk 0:02:52]} 7. Ba4 {[%clk 0:02:44]}  c4 {[%clk 0:02:49]} 8. Bc2 {[%clk 0:02:44]}  d5 {[%clk 0:02:46]} 9. exd5 {[%clk 0:02:38]}  Nxd5 {[%clk 0:02:46]} 10. b3 {[%clk 0:02:37]}  cxb3 {[%clk 0:02:44]} 11. axb3 {[%clk 0:02:37]}  Nf6 {[%clk 0:02:44]} 12. d4 {[%clk 0:02:33]}  Be7 {[%clk 0:02:42]} 13. Nbd2 {[%clk 0:02:07]}  O-O {[%clk 0:02:40]} 14. Ne4 {[%clk 0:02:07]}  Bb7 {[%clk 0:02:40]} 15. Qd3 {[%clk 0:01:53]}  Nxe4 {[%clk 0:02:32]} 16. Qxe4 {[%clk 0:01:54]}  g6 {[%clk 0:02:26]} 17. Qg4 {[%clk 0:01:49]}  h5 {[%clk 0:02:21]} 18. Qg3 {[%clk 0:01:43]}  Bd6 {[%clk 0:02:20]} 19. Bf4 {[%clk 0:01:43]}  Bxf4 {[%clk 0:02:14]} 20. Qxf4 {[%clk 0:01:44]}  Qb8 {[%clk 0:02:14]} 21. Ne5 {[%clk 0:01:37]}  Nxe5 {[%clk 0:02:13]} 22. Rxe5 {[%clk 0:01:38]}  Qd8 {[%clk 0:01:55]} 23. Rae1 {[%clk 0:01:21]}  Rc8 {[%clk 0:01:47]} 24. R1e3 {[%clk 0:01:21]}  Qc7 {[%clk 0:01:29]} 25. Qh6 {[%clk 0:01:08]}  Qe7 {[%clk 0:00:54]} 26. Rg5 {[%clk 0:00:57]}  Rc7 {[%clk 0:00:14]} 27. Bxg6 {[%clk 0:00:49]}  fxg6 {[%clk 0:00:12]} 28. Rxg6+ {[%clk 0:00:49]}  Qg7 {[%clk 0:00:12]} 29. Rxg7+ {[%clk 0:00:49]}  Rxg7 {[%clk 0:00:13]} 30. Qxe6+ {[%clk 0:00:49]}  Kh7 {[%clk 0:00:12]} 31. Rg3 {[%clk 0:00:48]}  Rgf7 {[%clk 0:00:09]} 32. Qg6+ {[%clk 0:00:47]}  Kh8 {[%clk 0:00:08]} 33. Qh6+ {[%clk 0:00:48]}  Rh7 {[%clk 0:00:08]} 34. Qxf8# {[%clk 0:00:49]} 1-0


[Site "https://www.chess.com"]

[Event "Titled Tuesday Blitz January 10 Early 2023"]
[White "Talibov, Shiroghlan"]
[Black "Leve, Nitai"]
[WhiteFideId "13429078"]
[BlackFideId "2006898"]
[WhiteElo "2359"]
[BlackElo "2128"]
[Result "1-0"]
[Round "01"]
[TimeControl "180+2"]
[Date "2023.01.10"]
[WhiteClock "0:00:46"]
[BlackClock "0:00:01"]

1. Nf3 {[%clk 0:03:00]}  d5 {[%clk 0:02:59]} 2. d4 {[%clk 0:03:00]}  Nf6 {[%clk 0:02:58]} 3. Bf4 {[%clk 0:02:55]}  Bf5 {[%clk 0:02:58]} 4. e3 {[%clk 0:02:56]}  e6 {[%clk 0:02:56]} 5. c4 {[%clk 0:02:56]}  Bd6 {[%clk 0:02:33]} 6. Bxd6 {[%clk 0:02:55]}  cxd6 {[%clk 0:02:29]} 7. Nc3 {[%clk 0:02:55]}  dxc4 {[%clk 0:02:28]} 8. Bxc4 {[%clk 0:02:56]}  O-O {[%clk 0:02:28]} 9. O-O {[%clk 0:02:55]}  Nc6 {[%clk 0:02:28]} 10. Rc1 {[%clk 0:02:53]}  Bg4 {[%clk 0:02:21]} 11. h3 {[%clk 0:02:45]}  Bh5 {[%clk 0:02:21]} 12. d5 {[%clk 0:02:41]}  Bxf3 {[%clk 0:02:06]} 13. Qxf3 {[%clk 0:02:39]}  Ne5 {[%clk 0:02:06]} 14. Qe2 {[%clk 0:02:38]}  Nxc4 {[%clk 0:02:06]} 15. Qxc4 {[%clk 0:02:39]}  exd5 {[%clk 0:01:24]} 16. Nxd5 {[%clk 0:02:37]}  Nxd5 {[%clk 0:01:24]} 17. Qxd5 {[%clk 0:02:38]}  Qb6 {[%clk 0:01:24]} 18. b3 {[%clk 0:02:37]}  Rac8 {[%clk 0:01:18]} 19. Rfd1 {[%clk 0:02:36]}  Rxc1 {[%clk 0:01:08]} 20. Rxc1 {[%clk 0:02:37]}  h6 {[%clk 0:01:09]} 21. Rc4 {[%clk 0:02:33]}  Re8 {[%clk 0:01:02]} 22. Rf4 {[%clk 0:02:30]}  Re6 {[%clk 0:01:02]} 23. Qf5 {[%clk 0:02:27]}  Qc7 {[%clk 0:00:44]} 24. Rc4 {[%clk 0:02:26]}  Qd7 {[%clk 0:00:45]} 25. Qa5 {[%clk 0:02:24]}  b6 {[%clk 0:00:43]} 26. Qa6 {[%clk 0:02:17]}  Re5 {[%clk 0:00:40]} 27. a4 {[%clk 0:01:59]}  Rc5 {[%clk 0:00:37]} 28. Rd4 {[%clk 0:01:57]}  Rc1+ {[%clk 0:00:30]} 29. Kh2 {[%clk 0:01:56]}  Rc5 {[%clk 0:00:30]} 30. b4 {[%clk 0:01:53]}  Rc1 {[%clk 0:00:28]} 31. Qd3 {[%clk 0:01:50]}  Qc7 {[%clk 0:00:19]} 32. f4 {[%clk 0:01:47]}  Rc3 {[%clk 0:00:13]} 33. Qe4 {[%clk 0:01:43]}  g6 {[%clk 0:00:12]} 34. h4 {[%clk 0:01:40]}  h5 {[%clk 0:00:12]} 35. Kh3 {[%clk 0:01:26]}  Rc1 {[%clk 0:00:11]} 36. Kh2 {[%clk 0:01:25]}  Rc2 {[%clk 0:00:11]} 37. Qd5 {[%clk 0:01:22]}  Qc3 {[%clk 0:00:09]} 38. Qe4 {[%clk 0:01:12]}  Qb2 {[%clk 0:00:07]} 39. Rxd6 {[%clk 0:01:09]}  Rc1 {[%clk 0:00:07]} 40. Rd7 {[%clk 0:01:04]}  Qf6 {[%clk 0:00:04]} 41. Kg3 {[%clk 0:00:59]}  Rc3 {[%clk 0:00:03]} 42. a5 {[%clk 0:00:54]}  bxa5 {[%clk 0:00:03]} 43. bxa5 {[%clk 0:00:54]}  Ra3 {[%clk 0:00:04]} 44. Rxa7 {[%clk 0:00:50]}  Ra1 {[%clk 0:00:04]} 45. a6 {[%clk 0:00:48]}  Rh1 {[%clk 0:00:03]} 46. Qe8+ {[%clk 0:00:46]}  Kg7 {[%clk 0:00:03]} 47. Qe5 {[%clk 0:00:47]}  Qxe5 {[%clk 0:00:02]} 48. fxe5 {[%clk 0:00:47]}  Ra1 {[%clk 0:00:02]} 49. e6 {[%clk 0:00:48]}  Ra3 {[%clk 0:00:01]} 50. e7 {[%clk 0:00:46]} 1-0


[Site "https://www.chess.com"]

[Event "Titled Tuesday Blitz January 10 Early 2023"]
[White "Karabalis, Harilos"]
[Black "Bykhovsky, Anatoly"]
[WhiteFideId "4621808"]
[BlackFideId "2806991"]
[WhiteElo "2252"]
[BlackElo "2496"]
[Result "0-1"]
[Round "01"]
[TimeControl "180+2"]
[Date "2023.01.10"]
[WhiteClock "0:00:10"]
[BlackClock "0:02:05"]

1. c4 {[%clk 0:02:59]}  c5 {[%clk 0:02:59]} 2. Nc3 {[%clk 0:02:58]}  Nc6 {[%clk 0:03:00]} 3. g3 {[%clk 0:02:58]}  g6 {[%clk 0:03:00]} 4. Bg2 {[%clk 0:02:58]}  Bg7 {[%clk 0:03:01]} 5. a3 {[%clk 0:02:58]}  e6 {[%clk 0:03:00]} 6. e4 {[%clk 0:02:52]}  Nge7 {[%clk 0:03:00]} 7. Nge2 {[%clk 0:02:51]}  O-O {[%clk 0:03:00]} 8. O-O {[%clk 0:02:50]}  d6 {[%clk 0:03:00]} 9. Rb1 {[%clk 0:02:50]}  b6 {[%clk 0:03:00]} 10. b4 {[%clk 0:02:48]}  Bb7 {[%clk 0:03:01]} 11. d3 {[%clk 0:02:35]}  Qd7 {[%clk 0:02:59]} 12. Be3 {[%clk 0:02:33]}  f5 {[%clk 0:02:58]} 13. Qd2 {[%clk 0:02:31]}  Rf7 {[%clk 0:02:53]} 14. Bh6 {[%clk 0:02:30]}  Bh8 {[%clk 0:02:53]} 15. Be3 {[%clk 0:02:11]}  Ne5 {[%clk 0:02:52]} 16. h3 {[%clk 0:02:07]}  fxe4 {[%clk 0:02:50]} 17. dxe4 {[%clk 0:02:04]}  Nxc4 {[%clk 0:02:50]} 18. Qd3 {[%clk 0:02:00]}  Nxa3 {[%clk 0:02:50]} 19. Ra1 {[%clk 0:01:43]}  cxb4 {[%clk 0:02:49]} 20. Rxa3 {[%clk 0:01:31]}  bxa3 {[%clk 0:02:48]} 21. Nb5 {[%clk 0:01:28]}  d5 {[%clk 0:02:44]} 22. exd5 {[%clk 0:01:23]}  Nxd5 {[%clk 0:02:43]} 23. Bd4 {[%clk 0:01:21]}  Nb4 {[%clk 0:02:36]} 24. Qc4 {[%clk 0:01:11]}  Bxg2 {[%clk 0:02:36]} 25. Kxg2 {[%clk 0:01:09]}  Qd5+ {[%clk 0:02:36]} 26. Qxd5 {[%clk 0:01:09]}  Nxd5 {[%clk 0:02:37]} 27. Bxh8 {[%clk 0:01:08]}  Kxh8 {[%clk 0:02:38]} 28. Nxa3 {[%clk 0:01:06]}  a6 {[%clk 0:02:38]} 29. Nd4 {[%clk 0:01:05]}  e5 {[%clk 0:02:38]} 30. Nf3 {[%clk 0:01:04]}  e4 {[%clk 0:02:38]} 31. Ng5 {[%clk 0:01:04]}  Re7 {[%clk 0:02:37]} 32. Nc4 {[%clk 0:01:01]}  b5 {[%clk 0:02:34]} 33. Na5 {[%clk 0:01:00]}  e3 {[%clk 0:02:33]} 34. f4 {[%clk 0:00:54]}  Rc8 {[%clk 0:02:30]} 35. Re1 {[%clk 0:00:50]}  Rc2+ {[%clk 0:02:29]} 36. Kf3 {[%clk 0:00:46]}  Rf2+ {[%clk 0:02:27]} 37. Kg4 {[%clk 0:00:46]}  Nf6+ {[%clk 0:02:26]} 38. Kh4 {[%clk 0:00:46]}  h6 {[%clk 0:02:26]} 39. Nc6 {[%clk 0:00:34]}  hxg5+ {[%clk 0:02:24]} 40. Kxg5 {[%clk 0:00:30]}  Nh7+ {[%clk 0:02:24]} 41. Kh6 {[%clk 0:00:26]}  Re6 {[%clk 0:02:19]} 42. Nd4 {[%clk 0:00:22]}  Re4 {[%clk 0:02:17]} 43. Rc1 {[%clk 0:00:16]}  Kg8 {[%clk 0:02:10]} 44. Rc8+ {[%clk 0:00:15]}  Nf8 {[%clk 0:02:10]} 45. Nc6 {[%clk 0:00:11]}  e2 {[%clk 0:02:09]} 46. Ne5 {[%clk 0:00:11]}  Rxe5 {[%clk 0:02:05]} 47. fxe5 {[%clk 0:00:10]}  e1=Q {[%clk 0:02:05]} 0-1


[Site "https://www.chess.com"]

[Event "Titled Tuesday Blitz January 10 Early 2023"]
[White "Horvath, Dominik"]
[Black "Tarasova, Viktoriya"]
[WhiteFideId "1642561"]
[BlackFideId "4175840"]
[WhiteElo "2523"]
[BlackElo "2226"]
[Result "1-0"]
[Round "01"]
[TimeControl "180+2"]
[Date "2023.01.10"]
[WhiteClock "0:01:15"]
[BlackClock "0:00:02"]

1. e4 {[%clk 0:02:57]}  e5 {[%clk 0:02:59]} 2. Nc3 {[%clk 0:02:53]}  Nf6 {[%clk 0:02:57]} 3. d4 {[%clk 0:02:48]}  exd4 {[%clk 0:02:48]} 4. Qxd4 {[%clk 0:02:49]}  Nc6 {[%clk 0:02:49]} 5. Qd3 {[%clk 0:02:46]}  Bb4 {[%clk 0:02:48]} 6. Bd2 {[%clk 0:02:46]}  O-O {[%clk 0:02:47]} 7. O-O-O {[%clk 0:02:46]}  Re8 {[%clk 0:02:47]} 8. Nge2 {[%clk 0:02:46]}  d6 {[%clk 0:02:46]} 9. Bg5 {[%clk 0:02:46]}  h6 {[%clk 0:02:41]} 10. Bxf6 {[%clk 0:02:46]}  Qxf6 {[%clk 0:02:41]} 11. Nd5 {[%clk 0:02:47]}  Qd8 {[%clk 0:02:42]} 12. Nxb4 {[%clk 0:02:47]}  Nxb4 {[%clk 0:02:42]} 13. Qd2 {[%clk 0:02:48]}  Nc6 {[%clk 0:02:42]} 14. f3 {[%clk 0:02:45]}  Be6 {[%clk 0:02:41]} 15. Nf4 {[%clk 0:02:44]}  Qe7 {[%clk 0:02:35]} 16. Kb1 {[%clk 0:02:44]}  Ne5 {[%clk 0:02:29]} 17. Qc3 {[%clk 0:02:42]}  a6 {[%clk 0:02:26]} 18. h4 {[%clk 0:02:39]}  Rac8 {[%clk 0:02:08]} 19. Nxe6 {[%clk 0:02:33]}  Qxe6 {[%clk 0:02:06]} 20. g3 {[%clk 0:02:32]}  Qe7 {[%clk 0:02:03]} 21. Bh3 {[%clk 0:02:30]}  Rcd8 {[%clk 0:02:04]} 22. f4 {[%clk 0:02:31]}  Nc6 {[%clk 0:02:03]} 23. Rhe1 {[%clk 0:02:30]}  f6 {[%clk 0:01:56]} 24. Qb3+ {[%clk 0:02:28]}  Kh8 {[%clk 0:01:55]} 25. Qxb7 {[%clk 0:02:26]}  Na5 {[%clk 0:01:48]} 26. Qd5 {[%clk 0:02:23]}  c5 {[%clk 0:01:46]} 27. g4 {[%clk 0:02:20]}  Rb8 {[%clk 0:01:43]} 28. g5 {[%clk 0:02:18]}  Rb6 {[%clk 0:01:30]} 29. gxh6 {[%clk 0:02:15]}  gxh6 {[%clk 0:01:30]} 30. Rg1 {[%clk 0:02:12]}  Reb8 {[%clk 0:01:30]} 31. b3 {[%clk 0:02:12]}  c4 {[%clk 0:01:27]} 32. Rg6 {[%clk 0:02:12]}  cxb3 {[%clk 0:01:14]} 33. Rxh6+ {[%clk 0:02:12]}  Kg7 {[%clk 0:01:13]} 34. Rh7+ {[%clk 0:01:27]}  Kxh7 {[%clk 0:00:38]} 35. Qh5+ {[%clk 0:01:27]}  Kg8 {[%clk 0:00:27]} 36. Rg1+ {[%clk 0:01:28]}  Qg7 {[%clk 0:00:24]} 37. Be6+ {[%clk 0:01:27]}  Kf8 {[%clk 0:00:24]} 38. Rxg7 {[%clk 0:01:28]}  Kxg7 {[%clk 0:00:24]} 39. Qf7+ {[%clk 0:01:28]}  Kh8 {[%clk 0:00:21]} 40. Qxf6+ {[%clk 0:01:27]}  Kh7 {[%clk 0:00:22]} 41. Bf5+ {[%clk 0:01:27]}  Kg8 {[%clk 0:00:22]} 42. axb3 {[%clk 0:01:24]}  d5 {[%clk 0:00:09]} 43. Be6+ {[%clk 0:01:23]}  Kh7 {[%clk 0:00:08]} 44. exd5 {[%clk 0:01:20]}  Nxb3 {[%clk 0:00:08]} 45. Qf5+ {[%clk 0:01:19]}  Kg7 {[%clk 0:00:06]} 46. Qg5+ {[%clk 0:01:19]}  Kh7 {[%clk 0:00:04]} 47. Qh5+ {[%clk 0:01:19]}  Kg7 {[%clk 0:00:04]} 48. Qe5+ {[%clk 0:01:19]}  Kh7 {[%clk 0:00:04]} 49. cxb3 {[%clk 0:01:17]}  Rxb3+ {[%clk 0:00:04]} 50. Kc2 {[%clk 0:01:17]}  R3b5 {[%clk 0:00:02]} 51. Qc7+ {[%clk 0:01:15]} 1-0


[Site "https://www.chess.com"]

[Event "Titled Tuesday Blitz January 10 Early 2023"]
[White "Fernandez Guillen, Ernesto J."]
[Black "Nikologorsky, Matfei"]
[WhiteFideId "3512428"]
[BlackFideId "24102474"]
[WhiteElo "2477"]
[BlackElo "2182"]
[Result "1-0"]
[Round "01"]
[TimeControl "180+2"]
[Date "2023.01.10"]
[WhiteClock "0:00:30"]
[BlackClock "0:01:08"]

1. e4 {[%clk 0:02:55]}  c5 {[%clk 0:02:59]} 2. Nf3 {[%clk 0:02:54]}  e6 {[%clk 0:03:00]} 3. d4 {[%clk 0:02:55]}  cxd4 {[%clk 0:03:00]} 4. Nxd4 {[%clk 0:02:55]}  a6 {[%clk 0:03:01]} 5. Bd3 {[%clk 0:02:55]}  Qc7 {[%clk 0:03:01]} 6. Nc3 {[%clk 0:02:55]}  Nc6 {[%clk 0:02:59]} 7. Nb3 {[%clk 0:02:55]}  Nf6 {[%clk 0:02:57]} 8. f4 {[%clk 0:02:55]}  d6 {[%clk 0:02:56]} 9. Be3 {[%clk 0:02:55]}  Be7 {[%clk 0:02:56]} 10. Qf3 {[%clk 0:02:55]}  b5 {[%clk 0:02:46]} 11. a3 {[%clk 0:02:53]}  Bb7 {[%clk 0:02:46]} 12. g4 {[%clk 0:02:53]}  Nd7 {[%clk 0:02:45]} 13. g5 {[%clk 0:02:52]}  Nc5 {[%clk 0:02:20]} 14. h4 {[%clk 0:01:41]}  b4 {[%clk 0:02:00]} 15. axb4 {[%clk 0:01:39]}  Nxb4 {[%clk 0:02:01]} 16. Nxc5 {[%clk 0:01:38]}  dxc5 {[%clk 0:02:01]} 17. Rc1 {[%clk 0:01:14]}  c4 {[%clk 0:01:54]} 18. Be2 {[%clk 0:01:14]}  Rd8 {[%clk 0:01:54]} 19. O-O {[%clk 0:01:14]}  Bc5 {[%clk 0:01:53]} 20. h5 {[%clk 0:00:52]}  a5 {[%clk 0:01:31]} 21. Rf2 {[%clk 0:00:39]}  Bxe3 {[%clk 0:01:28]} 22. Qxe3 {[%clk 0:00:38]}  Qc6 {[%clk 0:01:24]} 23. Bf3 {[%clk 0:00:35]}  O-O {[%clk 0:01:18]} 24. h6 {[%clk 0:00:34]}  g6 {[%clk 0:01:16]} 25. Rd2 {[%clk 0:00:30]}  Rxd2 {[%clk 0:01:10]} 26. Qxd2 {[%clk 0:00:31]}  Qc5+ {[%clk 0:01:11]} 27. Kg2 {[%clk 0:00:30]}  Nc6 {[%clk 0:01:10]} 28. Rd1 {[%clk 0:00:29]}  Rd8 {[%clk 0:01:10]} 29. Qxd8+ {[%clk 0:00:27]}  Nxd8 {[%clk 0:01:10]} 30. Rxd8+ {[%clk 0:00:28]}  Qf8 {[%clk 0:01:11]} 31. Rxf8+ {[%clk 0:00:28]}  Kxf8 {[%clk 0:01:12]} 32. Be2 {[%clk 0:00:28]}  Ke7 {[%clk 0:01:11]} 33. Bxc4 {[%clk 0:00:28]}  Kd6 {[%clk 0:01:12]} 34. Kf3 {[%clk 0:00:28]}  Kc5 {[%clk 0:01:12]} 35. Bd3 {[%clk 0:00:28]}  Kb4 {[%clk 0:01:12]} 36. Ke3 {[%clk 0:00:29]}  a4 {[%clk 0:01:12]} 37. Nb1 {[%clk 0:00:29]}  Kc5 {[%clk 0:01:12]} 38. c3 {[%clk 0:00:29]}  Bc6 {[%clk 0:01:12]} 39. Na3 {[%clk 0:00:29]}  Be8 {[%clk 0:01:10]} 40. f5 {[%clk 0:00:29]}  exf5 {[%clk 0:01:09]} 41. exf5 {[%clk 0:00:30]}  Kd5 {[%clk 0:01:09]} 42. Kf4 {[%clk 0:00:29]}  Bd7 {[%clk 0:01:08]} 43. fxg6 {[%clk 0:00:29]}  fxg6 {[%clk 0:01:08]} 44. Bxg6 {[%clk 0:00:30]} 1-0


[Site "https://www.chess.com"]

[Event "Titled Tuesday Blitz January 10 Early 2023"]
[White "marik_spb"]
[Black "Begmuratov, Khumoyun"]
[BlackFideId "14210207"]
[WhiteElo "2432"]
[BlackElo "2387"]
[Result "1/2-1/2"]
[Round "01"]
[TimeControl "180+2"]
[Date "2023.01.10"]
[WhiteClock "0:00:09"]
[BlackClock "0:00:05"]

1. d4 {[%clk 0:02:59]}  Nf6 {[%clk 0:03:00]} 2. c4 {[%clk 0:02:59]}  e6 {[%clk 0:03:00]} 3. g3 {[%clk 0:02:59]}  Bb4+ {[%clk 0:02:59]} 4. Bd2 {[%clk 0:02:59]}  Be7 {[%clk 0:02:52]} 5. Bg2 {[%clk 0:02:59]}  d5 {[%clk 0:02:53]} 6. Nf3 {[%clk 0:02:58]}  c6 {[%clk 0:02:53]} 7. Qc2 {[%clk 0:02:57]}  O-O {[%clk 0:02:53]} 8. O-O {[%clk 0:02:57]}  b6 {[%clk 0:02:53]} 9. b3 {[%clk 0:02:56]}  Nbd7 {[%clk 0:02:52]} 10. Rd1 {[%clk 0:02:54]}  Ba6 {[%clk 0:02:51]} 11. a4 {[%clk 0:02:54]}  Rc8 {[%clk 0:02:48]} 12. a5 {[%clk 0:02:54]}  c5 {[%clk 0:02:36]} 13. axb6 {[%clk 0:02:53]}  Qxb6 {[%clk 0:02:37]} 14. Qa2 {[%clk 0:02:50]}  Bb7 {[%clk 0:02:19]} 15. Ba5 {[%clk 0:02:41]}  Qa6 {[%clk 0:02:07]} 16. Nbd2 {[%clk 0:02:33]}  cxd4 {[%clk 0:02:01]} 17. Nxd4 {[%clk 0:02:25]}  Bc5 {[%clk 0:01:38]} 18. e3 {[%clk 0:02:20]}  dxc4 {[%clk 0:01:26]} 19. Nxc4 {[%clk 0:01:56]}  Bxg2 {[%clk 0:01:23]} 20. Kxg2 {[%clk 0:01:57]}  e5 {[%clk 0:01:08]} 21. Nf5 {[%clk 0:01:37]}  Qe6 {[%clk 0:01:02]} 22. Nfd6 {[%clk 0:00:57]}  Rc6 {[%clk 0:00:59]} 23. Nb5 {[%clk 0:00:52]}  Qf5 {[%clk 0:00:41]} 24. Qe2 {[%clk 0:00:50]}  Qe6 {[%clk 0:00:23]} 25. Bc3 {[%clk 0:00:45]}  a6 {[%clk 0:00:21]} 26. Nba3 {[%clk 0:00:34]}  Nd5 {[%clk 0:00:18]} 27. Be1 {[%clk 0:00:33]}  e4 {[%clk 0:00:15]} 28. Nc2 {[%clk 0:00:31]}  N7f6 {[%clk 0:00:14]} 29. Nd4 {[%clk 0:00:31]}  Bxd4 {[%clk 0:00:15]} 30. Rxd4 {[%clk 0:00:31]}  h5 {[%clk 0:00:13]} 31. h4 {[%clk 0:00:28]}  Qf5 {[%clk 0:00:13]} 32. Kg1 {[%clk 0:00:26]}  g6 {[%clk 0:00:13]} 33. Ra5 {[%clk 0:00:25]}  Qe6 {[%clk 0:00:12]} 34. Ra1 {[%clk 0:00:22]}  Rb8 {[%clk 0:00:11]} 35. Qc2 {[%clk 0:00:21]}  Ne7 {[%clk 0:00:08]} 36. Rad1 {[%clk 0:00:20]}  Qh3 {[%clk 0:00:08]} 37. Rd8+ {[%clk 0:00:18]}  Rxd8 {[%clk 0:00:07]} 38. Rxd8+ {[%clk 0:00:19]}  Kg7 {[%clk 0:00:07]} 39. Qb2 {[%clk 0:00:18]}  Rc8 {[%clk 0:00:04]} 40. Rxc8 {[%clk 0:00:17]}  Qxc8 {[%clk 0:00:05]} 41. Nd6 {[%clk 0:00:17]}  Qe6 {[%clk 0:00:05]} 42. Nc4 {[%clk 0:00:15]}  Nd5 {[%clk 0:00:05]} 43. Bc3 {[%clk 0:00:15]}  Nxc3 {[%clk 0:00:05]} 44. Qxc3 {[%clk 0:00:16]}  Qd5 {[%clk 0:00:05]} 45. Nd2 {[%clk 0:00:15]}  Qe6 {[%clk 0:00:04]} 46. Kg2 {[%clk 0:00:15]}  Kg8 {[%clk 0:00:05]} 47. Qd4 {[%clk 0:00:14]}  Qf5 {[%clk 0:00:05]} 48. Qd8+ {[%clk 0:00:13]}  Kg7 {[%clk 0:00:05]} 49. Qd4 {[%clk 0:00:14]}  a5 {[%clk 0:00:05]} 50. Nc4 {[%clk 0:00:12]}  Qb5 {[%clk 0:00:04]} 51. Nd6 {[%clk 0:00:11]}  Qc6 {[%clk 0:00:05]} 52. Kg1 {[%clk 0:00:10]}  Qc1+ {[%clk 0:00:04]} 53. Kg2 {[%clk 0:00:10]}  Qc6 {[%clk 0:00:05]} 54. Kh2 {[%clk 0:00:10]}  Qa6 {[%clk 0:00:01]} 55. Nxe4 {[%clk 0:00:09]}  Qe6 {[%clk 0:00:02]} 56. Nxf6 {[%clk 0:00:09]}  Qxf6 {[%clk 0:00:03]} 57. Qxf6+ {[%clk 0:00:10]}  Kxf6 {[%clk 0:00:04]} 58. Kg2 {[%clk 0:00:09]}  Ke5 {[%clk 0:00:04]} 59. Kf3 {[%clk 0:00:10]}  Kd5 {[%clk 0:00:05]} 60. Kf4 {[%clk 0:00:11]}  Kc5 {[%clk 0:00:05]} 61. Ke5 {[%clk 0:00:08]}  Kb4 {[%clk 0:00:06]} 62. Kf6 {[%clk 0:00:09]}  Kxb3 {[%clk 0:00:07]} 63. Kxf7 {[%clk 0:00:10]}  a4 {[%clk 0:00:07]} 64. e4 {[%clk 0:00:11]}  a3 {[%clk 0:00:08]} 65. e5 {[%clk 0:00:12]}  a2 {[%clk 0:00:09]} 66. e6 {[%clk 0:00:13]}  a1=Q {[%clk 0:00:09]} 67. e7 {[%clk 0:00:13]}  Qa2 {[%clk 0:00:03]} 68. e8=Q {[%clk 0:00:12]}  Qxf2+ {[%clk 0:00:04]} 69. Kxg6 {[%clk 0:00:12]}  Qxg3+ {[%clk 0:00:04]} 70. Kxh5 {[%clk 0:00:12]}  Qf3+ {[%clk 0:00:04]} 71. Kg5 {[%clk 0:00:12]}  Qg3+ {[%clk 0:00:05]} 72. Kh5 {[%clk 0:00:12]}  Qf3+ {[%clk 0:00:05]} 73. Kg5 {[%clk 0:00:09]}  Qg3+ {[%clk 0:00:05]} 74. Kh5 {[%clk 0:00:09]} 1/2-1/2


[Site "https://www.chess.com"]

[Event "Titled Tuesday Blitz January 10 Early 2023"]
[White "Karthik Rajaa"]
[Black "Stanojevic, Ilija"]
[WhiteFideId "25035215"]
[BlackFideId "959995"]
[WhiteElo "2276"]
[BlackElo "2142"]
[Result "1-0"]
[Round "01"]
[TimeControl "180+2"]
[Date "2023.01.10"]
[WhiteClock "0:00:28"]
[BlackClock "0:00:13"]

1. e4 {[%clk 0:02:59]}  d6 {[%clk 0:03:00]} 2. d4 {[%clk 0:02:59]}  Nf6 {[%clk 0:03:00]} 3. Nc3 {[%clk 0:02:58]}  Nbd7 {[%clk 0:03:00]} 4. Be3 {[%clk 0:02:58]}  e5 {[%clk 0:03:00]} 5. dxe5 {[%clk 0:02:56]}  dxe5 {[%clk 0:03:00]} 6. Bc4 {[%clk 0:02:56]}  Be7 {[%clk 0:02:58]} 7. h3 {[%clk 0:02:52]}  c6 {[%clk 0:02:58]} 8. a4 {[%clk 0:02:52]}  h6 {[%clk 0:02:52]} 9. Nge2 {[%clk 0:02:51]}  Qc7 {[%clk 0:02:52]} 10. g4 {[%clk 0:02:46]}  b6 {[%clk 0:02:40]} 11. Ng3 {[%clk 0:02:42]}  g6 {[%clk 0:02:29]} 12. Qf3 {[%clk 0:02:34]}  Bb7 {[%clk 0:02:08]} 13. O-O-O {[%clk 0:02:17]}  O-O-O {[%clk 0:02:05]} 14. Bxf7 {[%clk 0:02:14]}  Rhf8 {[%clk 0:01:47]} 15. Bxg6 {[%clk 0:02:07]}  Nd5 {[%clk 0:01:35]} 16. Nxd5 {[%clk 0:02:07]}  cxd5 {[%clk 0:01:35]} 17. Bf5 {[%clk 0:02:07]}  d4 {[%clk 0:01:35]} 18. Bxh6 {[%clk 0:02:07]}  Rf6 {[%clk 0:01:29]} 19. Bg5 {[%clk 0:02:03]}  Kb8 {[%clk 0:01:17]} 20. Bxf6 {[%clk 0:02:00]}  Bxf6 {[%clk 0:01:18]} 21. Kb1 {[%clk 0:01:51]}  Nc5 {[%clk 0:01:15]} 22. Qa3 {[%clk 0:01:51]}  Be7 {[%clk 0:01:14]} 23. Qa2 {[%clk 0:01:51]}  Ba6 {[%clk 0:01:07]} 24. Rc1 {[%clk 0:00:43]}  Nb7 {[%clk 0:00:57]} 25. Rhd1 {[%clk 0:00:40]}  Bc4 {[%clk 0:00:51]} 26. b3 {[%clk 0:00:37]}  Bf7 {[%clk 0:00:46]} 27. c3 {[%clk 0:00:37]}  d3 {[%clk 0:00:43]} 28. c4 {[%clk 0:00:34]}  Nc5 {[%clk 0:00:41]} 29. Rc3 {[%clk 0:00:34]}  a5 {[%clk 0:00:40]} 30. Nf1 {[%clk 0:00:33]}  Bg5 {[%clk 0:00:36]} 31. h4 {[%clk 0:00:33]}  Bf4 {[%clk 0:00:36]} 32. g5 {[%clk 0:00:33]}  Qc6 {[%clk 0:00:29]} 33. Ne3 {[%clk 0:00:31]}  Nxe4 {[%clk 0:00:19]} 34. Rcxd3 {[%clk 0:00:29]}  Rxd3 {[%clk 0:00:17]} 35. Rxd3 {[%clk 0:00:30]}  Nd6 {[%clk 0:00:16]} 36. Qc2 {[%clk 0:00:23]}  Nxf5 {[%clk 0:00:14]} 37. Nxf5 {[%clk 0:00:24]}  Kb7 {[%clk 0:00:14]} 38. Ne3 {[%clk 0:00:24]}  Bg6 {[%clk 0:00:13]} 39. Kb2 {[%clk 0:00:23]}  Bxd3 {[%clk 0:00:13]} 40. Qxd3 {[%clk 0:00:24]}  Qc5 {[%clk 0:00:13]} 41. Qd5+ {[%clk 0:00:24]}  Kc7 {[%clk 0:00:11]} 42. Qxc5+ {[%clk 0:00:24]}  bxc5 {[%clk 0:00:12]} 43. Nd5+ {[%clk 0:00:25]}  Kd6 {[%clk 0:00:12]} 44. Nxf4 {[%clk 0:00:26]}  exf4 {[%clk 0:00:13]} 45. Kc2 {[%clk 0:00:26]}  Ke5 {[%clk 0:00:13]} 46. Kd3 {[%clk 0:00:27]}  Kf5 {[%clk 0:00:13]} 47. f3 {[%clk 0:00:27]}  Ke5 {[%clk 0:00:13]} 48. g6 {[%clk 0:00:28]}  Kf6 {[%clk 0:00:13]} 49. h5 {[%clk 0:00:28]} 1-0


[Site "https://www.chess.com"]